bitfinex/quotes_BTCUSD_20251113
["timestamp","ask_amount","ask_price","bid_price","bid_amount"]
[1763042679535,0.11810641,102300.0,102290.0,0.29597253]
[1763042679740,0.31360983,102300.0,102290.0,0.29697253]
[1763042679947,0.31360983,102300.0,102290.0,0.10145]
[1763042680356,0.88088761,102300.0,102290.0,0.0237]
[1763042680565,0.55085372,102300.0,102290.0,0.10145]
[1763042680777,0.31360983,102300.0,102290.0,0.10145]
[1763042680984,0.31360983,102300.0,102290.0,0.29697253]
[1763042681213,0.11810641,102300.0,102290.0,0.29697253]
[1763042681633,0.07566641,102300.0,102290.0,0.10145]
[1763042681854,0.04244,102300.0,102290.0,0.29697253]
[1763042682295,0.03464246,102310.0,102300.0,0.19550342]
[1763042682501,0.03464246,102310.0,102300.0,0.27325342]
[1763042682925,0.07708246,102310.0,102300.0,0.27325342]
[1763042683558,0.07808246,102310.0,102300.0,0.27325342]
[1763042683783,0.04434454,102310.0,102300.0,0.55293731]
[1763042683954,0.04334454,102310.0,102300.0,0.55293731]
[1763042684168,0.04334454,102310.0,102300.0,0.27325342]
[1763042684841,0.00090454,102310.0,102300.0,0.55293731]
[1763042685031,0.04334454,102310.0,102300.0,0.57293731]
[1763042685232,0.2052184,102330.0,102320.0,0.1954652]
[1763042685233,0.05089066,102330.0,102320.0,0.1954652]
[1763042685432,0.09333066,102330.0,102320.0,0.2482252]
[1763042685635,0.20525041,102340.0,102320.0,0.2959152]
[1763042685879,0.04244,102330.0,102320.0,0.2181652]
[1763042686061,0.2378861,102330.0,102320.0,0.2181652]
[1763042686264,0.2378861,102330.0,102320.0,0.2482252]
[1763042686465,0.04490658,102330.0,102320.0,0.2959152]
[1763042687248,0.00246658,102330.0,102320.0,0.57559909]
[1763042688148,0.00146658,102330.0,102320.0,0.57559909]
[1763042688604,0.00046658,102330.0,102320.0,0.57659909]
[1763042688789,0.00046658,102330.0,102320.0,0.59659909]
[1763042689217,0.00046658,102330.0,102320.0,0.62003909]
[1763042689662,0.00046658,102330.0,102320.0,0.3423552]
[1763042689893,0.00046658,102330.0,102320.0,0.62203909]
[1763042690127,0.00046658,102330.0,102320.0,0.2999152]
[1763042690781,0.19591268,102330.0,102320.0,0.2999152]
[1763042691026,0.19640636,102330.0,102320.0,0.2999152]
[1763042691253,0.00096026,102330.0,102320.0,0.10445]
[1763042691476,0.19640636,102330.0,102320.0,0.2999152]
[1763042692645,0.00096026,102330.0,102320.0,0.2999152]
[1763042693720,0.19640636,102330.0,102320.0,0.2999152]
[1763042694394,0.00096026,102330.0,102320.0,0.2999152]
[1763042695126,0.04344026,102330.0,102320.0,0.57959909]
[1763042695463,0.00096026,102330.0,102320.0,0.59959909]
[1763042695663,0.00096026,102330.0,102320.0,0.57959909]
[1763042696680,0.00096026,102330.0,102320.0,0.59959909]
[1763042697333,0.00096026,102330.0,102320.0,1.24570172]
[1763042697540,0.00096026,102330.0,102320.0,0.66633394]
[1763042697739,0.00096026,102330.0,102320.0,0.94601783]
[1763042699029,0.00096026,102330.0,102320.0,0.96601783]
[1763042699231,0.00096026,102330.0,102320.0,0.94601783]
[1763042700163,0.00096026,102330.0,102320.0,0.96601783]
[1763042700340,0.00096026,102330.0,102320.0,0.94601783]
[1763042700569,0.00096026,102330.0,102320.0,1.22570172]
[1763042701100,0.02933685,102380.0,102360.0,0.19538882]
[1763042701318,0.02933685,102380.0,102370.0,0.24890973]
[1763042701319,0.23793061,102380.0,102370.0,0.24890973]
[1763042701529,0.23793061,102380.0,102370.0,0.09678]
[1763042701953,0.23793061,102380.0,102370.0,0.29214973]
[1763042702158,0.04257996,102380.0,102370.0,0.29214973]
[1763042702358,0.04357996,102380.0,102370.0,0.29214973]
[1763042702601,0.04457996,102380.0,102370.0,0.29214973]
[1763042702777,0.04357996,102380.0,102370.0,0.29214973]
[1763042702997,0.00113996,102380.0,102370.0,0.57183362]
[1763042703196,0.04357996,102380.0,102370.0,0.57183362]
[1763042703470,0.00113996,102380.0,102370.0,0.57183362]
[1763042703804,0.00013996,102380.0,102370.0,0.57183362]
[1763042704020,0.00113996,102380.0,102370.0,0.57183362]
[1763042704544,0.0004,102390.0,102380.0,1.07771843]
[1763042704752,0.0004,102390.0,102380.0,1.15082843]
[1763042704952,0.0004,102390.0,102380.0,1.19424717]
[1763042705236,0.0004,102390.0,102380.0,1.23453704]
[1763042705441,0.0004,102390.0,102380.0,1.25453704]
[1763042705854,0.0004,102390.0,102380.0,1.23453704]
[1763042706058,0.0004,102390.0,102380.0,1.21424717]
[1763042706397,0.0004,102390.0,102380.0,1.22424716]
[1763042706796,0.0004,102410.0,102400.0,1.14109902]
[1763042707070,0.0004,102410.0,102400.0,1.19203902]
[1763042707260,0.00237297,102410.0,102400.0,1.21203902]
[1763042707474,0.00237297,102410.0,102400.0,1.23545902]
[1763042707928,0.00237297,102410.0,102400.0,0.6326725]
[1763042708060,0.00237297,102410.0,102400.0,0.91235639]
[1763042708467,0.00337297,102410.0,102400.0,0.91935639]
[1763042708791,0.00337297,102410.0,102400.0,1.24245902]
[1763042709001,0.00337297,102410.0,102400.0,1.17069313]
[1763042709601,0.00337297,102410.0,102400.0,1.15069313]
[1763042709801,0.00337297,102410.0,102400.0,1.17069313]
[1763042710056,0.00337297,102410.0,102400.0,1.15069313]
[1763042710207,0.00337297,102410.0,102400.0,1.17069313]
[1763042711051,0.00337297,102410.0,102400.0,1.62829501]
[1763042711484,0.00337297,102410.0,102400.0,1.658295]
[1763042711704,0.00337297,102410.0,102400.0,1.66220283]
[1763042712418,0.0004,102430.0,102420.0,0.36641874]
[1763042712633,0.00054004,102430.0,102420.0,1.12023499]
[1763042712842,0.00054004,102430.0,102420.0,1.16365499]
[1763042713695,0.00054004,102430.0,102420.0,1.14365499]
[1763042713916,0.00054004,102430.0,102420.0,1.17365498]
[1763042714341,0.00054004,102430.0,102420.0,1.21695869]
[1763042714655,0.0004,102440.0,102430.0,0.19525529]
[1763042714869,0.00086669,102440.0,102430.0,0.81254291]
[1763042715078,0.00086669,102440.0,102430.0,0.8715729]
[1763042715523,0.00086669,102440.0,102430.0,0.91499164]
[1763042715731,0.00086669,102440.0,102430.0,0.71526402]
[1763042716156,0.19610292,102440.0,102430.0,0.41854]
[1763042716571,0.19610292,102440.0,102430.0,0.09554]
[1763042716980,0.19610292,102440.0,102430.0,0.29879529]
[1763042717193,0.00086669,102440.0,102430.0,0.90338165]
[1763042717423,0.1955791,102470.0,102430.0,0.90338165]
[1763042717424,0.20495804,102460.0,102450.0,0.19521717]
[1763042717643,0.23802082,102470.0,102460.0,0.24731812]
[1763042717866,0.06085646,102470.0,102460.0,0.29073812]
[1763042718080,0.01841646,102470.0,102460.0,0.29073812]
[1763042718507,0.01989475,102470.0,102460.0,0.29073812]
[1763042718720,0.00201821,102470.0,102460.0,0.29073812]
[1763042719193,0.00201821,102470.0,102460.0,1.17890574]
[1763042719420,0.00201821,102470.0,102460.0,1.22232448]
[1763042719624,0.00201821,102470.0,102460.0,1.24232448]
[1763042720061,0.0004,102490.0,102480.0,0.56157877]
[1763042720279,0.0004,102490.0,102480.0,0.54666003]
[1763042720492,0.0004,102490.0,102480.0,0.59008003]
[1763042721113,0.19554098,102490.0,102480.0,0.59008003]
[1763042721324,0.23798098,102490.0,102480.0,0.0285]
[1763042721534,0.23798098,102490.0,102480.0,0.07192]
[1763042722583,0.23798098,102490.0,102470.0,0.02362]
[1763042722584,0.19516003,102480.0,102470.0,0.02362]
[1763042723016,0.19516003,102480.0,102470.0,0.05212]
[1763042723242,0.19516003,102480.0,102470.0,0.02362]
[1763042723453,0.19516003,102480.0,102470.0,0.29071907]
[1763042723658,0.19516003,102480.0,102470.0,0.09554]
[1763042723864,0.19516003,102480.0,102470.0,0.29171907]
[1763042724734,0.19516003,102480.0,102470.0,0.09654]
[1763042724942,0.19516003,102480.0,102470.0,0.05312]
[1763042725155,0.19516003,102480.0,102470.0,0.09654]
[1763042725372,0.23798098,102490.0,102470.0,0.29171907]
[1763042725541,0.2558551,102490.0,102480.0,0.26708003]
[1763042725748,0.06120664,102490.0,102480.0,0.26708003]
[1763042726196,0.06120664,102490.0,102480.0,0.07192]
[1763042726197,0.21390762,102490.0,102480.0,0.07192]
[1763042726832,0.06220664,102490.0,102480.0,0.26708003]
[1763042727042,0.00189252,102490.0,102480.0,0.26708003]
[1763042727478,0.02079364,102490.0,102480.0,0.26708003]
[1763042727678,0.00289252,102490.0,102480.0,0.26708003]
[1763042727920,0.00289252,102490.0,102480.0,0.73468192]
[1763042728134,0.00289252,102490.0,102480.0,1.19866639]
[1763042728544,0.00189252,102490.0,102480.0,1.19866639]
[1763042728744,0.00189252,102490.0,102480.0,1.23895626]
[1763042728961,0.00189252,102490.0,102480.0,1.19966639]
[1763042729163,0.00089252,102490.0,102480.0,1.19966639]
[1763042729554,0.00089252,102490.0,102480.0,1.21966639]
[1763042729755,0.00089252,102490.0,102480.0,1.30256639]
[1763042729974,0.00089252,102490.0,102480.0,0.59108003]
[1763042730170,0.00089252,102490.0,102480.0,0.43836]
[1763042730171,0.1960335,102490.0,102480.0,0.43836]
[1763042730376,0.1960335,102490.0,102480.0,0.59108003]
[1763042730555,0.04244,102500.0,102480.0,0.59108003]
[1763042730700,0.25548573,102500.0,102490.0,0.0916]
[1763042731947,0.25550592,102500.0,102490.0,0.0916]
[1763042732351,0.25650592,102500.0,102490.0,0.0916]
[1763042732597,0.06138363,102500.0,102490.0,0.28674098]
[1763042733006,0.21406558,102500.0,102490.0,0.0916]
[1763042733211,0.01894363,102500.0,102490.0,0.28674098]
[1763042733617,0.21506558,102500.0,102490.0,0.28674098]
[1763042733817,0.01994363,102500.0,102490.0,0.32918098]
[1763042733998,0.01994363,102500.0,102490.0,0.79678287]
[1763042734171,0.01994363,102500.0,102490.0,0.81678287]
[1763042734381,0.01994363,102500.0,102490.0,1.18320161]
[1763042734585,3.63e-06,102500.0,102490.0,1.28076734]
[1763042734790,0.0004,102520.0,102510.0,0.19510291]
[1763042735109,0.0004,102530.0,102520.0,0.51808388]
[1763042735304,0.00053995,102530.0,102520.0,0.58860388]
[1763042735801,0.00053995,102530.0,102520.0,1.05620577]
[1763042736170,0.00053995,102530.0,102520.0,1.09962451]
[1763042736368,0.00053995,102530.0,102520.0,1.5672264]
[1763042736572,0.00053995,102530.0,102520.0,1.5834656]
[1763042736783,0.00152451,102530.0,102520.0,1.6044656]
[1763042737023,0.00152451,102530.0,102520.0,1.13686371]
[1763042737229,0.00152451,102530.0,102520.0,1.5844656]
[1763042737405,0.00048,102550.0,102540.0,0.70606646]
[1763042737620,0.00094623,102550.0,102540.0,0.11296]
[1763042737903,0.00143832,102550.0,102540.0,0.11296]
[1763042738104,0.19646513,102550.0,102540.0,0.11296]
[1763042738324,0.19646513,102550.0,102540.0,0.30800583]
[1763042738325,0.00143832,102550.0,102540.0,0.30800583]
[1763042739452,0.00143832,102550.0,102540.0,0.30900583]
[1763042739700,0.19646513,102550.0,102540.0,0.07152]
[1763042739915,0.00143832,102550.0,102540.0,0.26656583]
[1763042740129,0.00143832,102550.0,102540.0,0.26756583]
[1763042740545,0.19646513,102550.0,102540.0,0.26756583]
[1763042740758,0.00143832,102550.0,102540.0,0.26756583]
[1763042741374,0.19646513,102550.0,102540.0,0.03086]
[1763042741781,0.00143832,102550.0,102540.0,0.26756583]
[1763042741937,0.19646513,102550.0,102540.0,0.26756583]
[1763042742353,0.23886513,102550.0,102540.0,0.03086]
[1763042742553,0.23886513,102550.0,102540.0,0.002]
[1763042742752,0.73314702,102550.0,102540.0,0.001]
[1763042742972,0.23986513,102550.0,102540.0,0.22390583]
[1763042743299,0.24086513,102550.0,102540.0,0.26556583]
[1763042743451,0.04583832,102550.0,102540.0,0.26556583]
[1763042743853,0.00343832,102550.0,102540.0,0.26556583]
[1763042744090,0.00343832,102550.0,102540.0,0.73316772]
[1763042744243,0.00343832,102550.0,102540.0,0.26556583]
[1763042744882,0.00143832,102550.0,102540.0,0.26556583]
[1763042745083,0.19646513,102550.0,102540.0,0.22490583]
[1763042745455,0.23886513,102550.0,102540.0,0.03086]
[1763042745945,0.23742681,102550.0,102540.0,0.03086]
[1763042746493,0.2554105,102550.0,102540.0,0.26756583]
[1763042746694,0.06038369,102550.0,102540.0,0.26756583]
[1763042747673,0.01798369,102550.0,102540.0,0.26756583]
[1763042747861,0.01798369,102550.0,102540.0,0.73516772]
[1763042748044,0.0424,102560.0,102550.0,0.19502681]
[1763042748246,0.25540176,102560.0,102550.0,0.28662681]
[1763042748862,0.25540176,102560.0,102550.0,0.04994]
[1763042749267,0.25740176,102560.0,102550.0,0.04994]
[1763042749468,0.28408176,102560.0,102550.0,0.02108]
[1763042749673,0.28408176,102560.0,102540.0,0.04166]
[1763042749674,0.19502681,102550.0,102530.0,0.58080438]
[1763042749894,0.21302077,102550.0,102530.0,0.58080438]
[1763042750091,0.21302077,102550.0,102540.0,0.07052]
[1763042750310,0.19504583,102540.0,102530.0,0.58080386]
[1763042750521,0.74344008,102560.0,102540.0,0.22390583]
[1763042750730,0.74344008,102560.0,102540.0,0.26556583]
[1763042750731,0.0424,102550.0,102540.0,0.26556583]
[1763042750928,0.25542597,102550.0,102540.0,0.26556583]
[1763042751139,0.25542597,102550.0,102530.0,0.5905571]
[1763042751338,0.25542597,102550.0,102540.0,0.22390583]
[1763042751726,0.21302597,102550.0,102540.0,0.26556583]
[1763042751923,0.25542597,102550.0,102540.0,0.001]
[1763042752290,0.28209597,102550.0,102540.0,0.002]
[1763042752515,0.74969786,102550.0,102540.0,0.002]
[1763042752728,0.25542597,102550.0,102540.0,0.002]
[1763042753011,0.28209597,102550.0,102540.0,0.002]
[1763042753861,0.21302597,102550.0,102540.0,0.22490583]
[1763042754058,0.21302597,102550.0,102540.0,0.26556583]
[1763042754059,0.25542597,102550.0,102540.0,0.26556583]
[1763042754267,0.25642597,102550.0,102540.0,0.26556583]
[1763042754469,0.25742597,102550.0,102540.0,0.07052]
[1763042754681,0.25742597,102550.0,102540.0,0.02886]
[1763042755087,0.25742597,102550.0,102540.0,0.22390583]
[1763042755512,0.06239916,102550.0,102540.0,0.22390583]
[1763042755718,0.25742597,102550.0,102540.0,0.26556583]
[1763042756129,0.25742597,102550.0,102540.0,0.22390583]
[1763042757295,0.06239916,102550.0,102540.0,0.22390583]
[1763042757490,0.01999916,102550.0,102540.0,0.22390583]
[1763042757694,0.06239916,102550.0,102540.0,0.22390583]
[1763042758475,0.25742597,102550.0,102540.0,0.22390583]
[1763042759372,0.27822644,102550.0,102540.0,0.22390583]
[1763042759811,0.08319963,102550.0,102540.0,0.22390583]
[1763042760233,0.27822644,102550.0,102540.0,0.02886]
[1763042761316,0.27822644,102550.0,102540.0,0.22390583]
[1763042761527,0.08319963,102550.0,102540.0,0.26794583]
[1763042762598,0.04079963,102550.0,102540.0,0.73554772]
[1763042762811,0.01999916,102550.0,102540.0,0.26794583]
[1763042763462,0.01899916,102550.0,102540.0,0.73554772]
[1763042763882,0.01799916,102550.0,102540.0,0.77894772]
[1763042764085,0.01799916,102550.0,102540.0,0.31134583]
[1763042764322,0.01799916,102550.0,102540.0,0.31234583]
[1763042764760,0.01799916,102550.0,102540.0,1.14636646]
[1763042766384,0.000246,102560.0,102550.0,0.51802681]
[1763042766561,0.000246,102560.0,102550.0,1.0810287]
[1763042766767,0.000246,102560.0,102550.0,0.61342681]
[1763042767001,0.01837994,102560.0,102550.0,0.61342681]
[1763042767209,0.01837994,102560.0,102550.0,1.1010287]
[1763042767468,0.01837994,102560.0,102550.0,1.0810287]
[1763042767949,0.02037994,102560.0,102550.0,1.0810287]
[1763042768197,0.02037994,102560.0,102550.0,0.61342681]
[1763042768424,0.02037994,102560.0,102550.0,0.33278681]
[1763042768623,0.21538774,102560.0,102550.0,0.0954]
[1763042768842,0.23626259,102560.0,102550.0,0.0954]
[1763042769577,0.75528536,102560.0,102550.0,0.05213]
[1763042769960,0.19502681,102550.0,102530.0,0.25941277]
[1763042769963,0.19504583,102540.0,102530.0,0.02108]
[1763042770253,0.2854755,102540.0,102530.0,0.21614485]
[1763042770494,0.25553977,102540.0,102530.0,0.28871485]
[1763042770919,0.53399978,102540.0,102530.0,0.05038]
[1763042771132,0.19506485,102530.0,102520.0,0.02397814]
[1763042771349,0.55546141,102530.0,102520.0,0.00114814]
[1763042771561,0.55546141,102530.0,102520.0,0.19623202]
[1763042771562,0.54847461,102530.0,102520.0,0.19623202]
[1763042771980,0.2421746,102530.0,102520.0,0.22553202]
[1763042772223,0.02085679,102530.0,102520.0,0.26880202]
[1763042772430,0.530176,102550.0,102530.0,0.19505624]
[1763042772652,0.0424,102540.0,102530.0,0.23832624]
[1763042772860,0.50408951,102550.0,102530.0,0.23832624]
[1763042773068,0.0424,102540.0,102530.0,0.26762624]
[1763042773635,0.23744583,102540.0,102530.0,0.26762624]
[1763042773836,0.0424,102540.0,102530.0,0.26762624]
[1763042774807,0.0434,102540.0,102530.0,0.26762624]
[1763042775516,0.23944583,102540.0,102530.0,0.26762624]
[1763042775742,0.04436,102540.0,102530.0,0.26762624]
[1763042776257,0.19506485,102530.0,102520.0,0.00114814]
[1763042776486,0.49072486,102530.0,102520.0,0.00114814]
[1763042777390,0.49072486,102530.0,102520.0,0.00314814]
[1763042777617,0.51856486,102530.0,102520.0,0.00414814]
[1763042777838,0.64397059,102530.0,102520.0,0.00414814]
[1763042778054,0.46191006,102530.0,102520.0,0.00414814]
[1763042778242,0.64397059,102530.0,102520.0,0.00314814]
[1763042778714,0.95231008,102530.0,102520.0,0.00314814]
[1763042778927,0.99572882,102530.0,102520.0,0.00314814]
[1763042779133,0.99572882,102530.0,102520.0,0.00114814]
[1763042779344,1.4151283,102530.0,102520.0,0.00114814]
[1763042779565,1.4171283,102530.0,102520.0,0.00114814]
[1763042779776,1.4161283,102530.0,102520.0,0.00114814]
[1763042780018,1.31872882,102530.0,102520.0,0.00114814]
[1763042780248,1.27831008,102530.0,102520.0,0.00114814]
[1763042780460,1.04221007,102530.0,102520.0,0.00114814]
[1763042780673,1.0421997,102530.0,102520.0,0.00114814]
[1763042780886,1.36392249,102530.0,102520.0,0.00114814]
[1763042781111,0.66617396,102530.0,102520.0,0.00114814]
[1763042781328,1.0421997,102530.0,102520.0,0.00114814]
[1763042781763,1.31162632,102530.0,102520.0,0.00114814]
[1763042781978,1.3206564,102530.0,102520.0,0.00114814]
[1763042782193,1.36407514,102530.0,102520.0,0.00114814]
[1763042782437,1.46047462,102530.0,102520.0,0.00114814]
[1763042782660,0.19514098,102490.0,102480.0,0.14090909]
[1763042782890,0.58232099,102490.0,102480.0,0.14137532]
[1763042783425,1.183781,102490.0,102480.0,0.14137532]
[1763042783650,1.20181209,102490.0,102480.0,0.14137532]
[1763042783860,1.20181198,102490.0,102480.0,0.14137532]
[1763042784074,0.90532099,102490.0,102480.0,0.14337532]
[1763042784505,0.90632099,102490.0,102480.0,0.14337532]
[1763042784722,0.01164,102490.0,102480.0,0.38445588]
[1763042784959,0.001,102490.0,102480.0,0.42772588]
[1763042785184,0.0434,102490.0,102480.0,0.42572588]
[1763042785818,0.23854098,102490.0,102480.0,0.23056585]
[1763042786031,0.51700099,102490.0,102480.0,0.21394532]
[1763042786242,0.55548099,102490.0,102480.0,0.14137532]
[1763042786450,0.60002098,102490.0,102480.0,0.14137532]
[1763042786661,0.85064099,102490.0,102480.0,0.14137532]
[1763042786874,0.97509047,102490.0,102480.0,0.14137532]
[1763042787082,1.00314047,102490.0,102480.0,0.14137532]
[1763042787743,0.90674099,102490.0,102480.0,0.14137532]
[1763042788380,0.87869099,102490.0,102480.0,0.14137532]
[1763042788599,0.87869099,102490.0,102480.0,0.1423603]
[1763042788600,1.22949624,102490.0,102480.0,0.1423603]
[1763042788830,1.25754624,102490.0,102480.0,0.1423603]
[1763042789256,0.93668623,102490.0,102480.0,0.1423603]
[1763042789480,0.97908623,102490.0,102480.0,0.1423603]
[1763042789694,0.90674099,102490.0,102480.0,0.1423603]
[1763042789914,1.185201,102490.0,102480.0,0.1423603]
[1763042790151,1.186201,102490.0,102480.0,0.1423603]
[1763042790399,0.90774099,102490.0,102480.0,0.1423603]
[1763042790609,0.87969099,102490.0,102480.0,0.1423603]
[1763042790814,0.83729099,102490.0,102480.0,0.1423603]
[1763042791028,0.52864099,102490.0,102480.0,0.2196403]
[1763042791235,0.52864099,102490.0,102480.0,0.1733203]
[1763042791504,0.85164099,102490.0,102480.0,0.1733203]
[1763042792836,0.87969099,102490.0,102480.0,0.1423603]
[1763042793052,0.90774099,102490.0,102480.0,0.1423603]
[1763042793554,0.87969099,102490.0,102480.0,0.1423603]
[1763042794249,0.57318098,102490.0,102480.0,0.2196403]
[1763042794499,0.52014098,102490.0,102480.0,0.41480033]
[1763042794709,0.56258098,102490.0,102480.0,0.2196403]
[1763042794936,0.85189099,102490.0,102480.0,0.1423603]
[1763042795181,0.87994099,102490.0,102480.0,0.1423603]
[1763042797712,0.90799099,102490.0,102480.0,0.1423603]
[1763042797936,0.87994099,102490.0,102480.0,0.1423603]
[1763042799893,0.90799099,102490.0,102480.0,0.1423603]
[1763042800766,0.92602655,102490.0,102480.0,0.1423603]
[1763042803211,1.11999176,102490.0,102480.0,0.1423603]
[1763042803392,1.02359228,102490.0,102480.0,0.1423603]
[1763042803787,1.04438371,102490.0,102480.0,0.1423603]
[1763042804217,1.33186776,102490.0,102480.0,0.1423603]
[1763042804999,1.05340775,102490.0,102480.0,0.1423603]
[1763042805543,1.33186776,102490.0,102480.0,0.1423603]
[1763042805751,1.05340775,102490.0,102480.0,0.1423603]
[1763042805950,1.33186776,102490.0,102480.0,0.1423603]
[1763042806390,1.45435373,102490.0,102480.0,0.1423603]
[1763042807517,1.35795425,102490.0,102480.0,0.1423603]
[1763042807940,1.36651381,102490.0,102480.0,0.1423603]
[1763042808142,1.41848288,102490.0,102480.0,0.1423603]
[1763042809118,1.14002287,102490.0,102480.0,0.1423603]
[1763042809318,1.140113,102490.0,102480.0,0.1423603]
[1763042809768,0.73599726,102490.0,102480.0,0.1733203]
[1763042809969,0.63751112,102490.0,102480.0,0.1733203]
[1763042810606,0.98856112,102490.0,102480.0,0.1423603]
[1763042811015,0.92586507,102490.0,102480.0,0.41480033]
[1763042811216,0.95391507,102490.0,102480.0,0.1733203]
[1763042811374,0.92586507,102490.0,102480.0,0.2196403]
[1763042811574,0.92586507,102490.0,102480.0,0.41480033]
[1763042811998,1.05031455,102490.0,102480.0,0.1423603]
[1763042812198,0.95391507,102490.0,102480.0,0.1423603]
[1763042812971,0.75877409,102490.0,102480.0,0.1423603]
[1763042813278,1.26042508,102490.0,102480.0,0.1423603]
[1763042813479,1.26899821,102490.0,102480.0,0.1423603]
[1763042813684,1.01664684,102490.0,102480.0,0.1423603]
[1763042814140,1.08810393,102490.0,102480.0,0.1423603]
[1763042815455,0.80964392,102490.0,102480.0,0.1423603]
[1763042815668,1.08810393,102490.0,102480.0,0.15659633]
[1763042815870,1.08810393,102490.0,102480.0,0.1423603]
[1763042816083,1.36656394,102490.0,102480.0,0.1423603]
[1763042816283,1.41853301,102490.0,102480.0,0.1423603]
[1763042816494,1.140073,102490.0,102480.0,0.1423603]
[1763042817346,1.08810393,102490.0,102480.0,0.1423603]
[1763042817975,1.46296342,102490.0,102480.0,0.1423603]
[1763042818190,1.41853301,102490.0,102480.0,0.1423603]
[1763042818763,1.38388696,102490.0,102480.0,0.1423603]
[1763042820544,1.07737695,102490.0,102480.0,0.1423603]
[1763042820751,1.10110695,102490.0,102480.0,0.1423603]
[1763042820964,1.10120807,102490.0,102480.0,0.1423603]
[1763042821172,1.41375882,102490.0,102480.0,0.1423603]
[1763042821617,1.41375882,102490.0,102480.0,1e-08]
[1763042821618,1.45717756,102490.0,102480.0,1e-08]
[1763042821828,0.19521717,102450.0,102430.0,0.02323]
[1763042822054,0.0424,102440.0,102430.0,0.21862442]
[1763042822267,0.0424,102440.0,102430.0,0.26023442]
[1763042822476,0.0424,102440.0,102430.0,0.28714442]
[1763042822688,0.323,102460.0,102450.0,0.19521717]
[1763042822875,0.41344238,102460.0,102450.0,0.24252717]
[1763042823154,0.08138414,102460.0,102450.0,0.28413717]
[1763042823372,0.25571461,102460.0,102450.0,0.28413717]
[1763042823632,0.53417462,102460.0,102450.0,0.28413717]
[1763042823841,0.08138175,102460.0,102450.0,0.28413717]
[1763042824048,0.06051649,102460.0,102450.0,0.28413717]
[1763042824465,0.01811649,102460.0,102450.0,0.28413717]
[1763042824671,0.06051292,102460.0,102450.0,0.28413717]
[1763042825096,0.25571104,102460.0,102450.0,0.08892]
[1763042825319,0.25571104,102460.0,102450.0,0.0204]
[1763042825320,0.58085393,102460.0,102450.0,0.0204]
[1763042825548,0.58185393,102460.0,102450.0,0.0204]
[1763042825790,0.9859185,102460.0,102450.0,0.0204]
[1763042826236,0.19521717,102450.0,102430.0,0.22838718]
[1763042826485,0.25160623,102440.0,102430.0,0.22838718]
[1763042826691,0.0424,102440.0,102430.0,0.27065718]
[1763042826899,0.0424,102440.0,102430.0,0.29947718]
[1763042827325,0.23763623,102440.0,102430.0,0.29947718]
[1763042828180,0.24877696,102440.0,102430.0,0.28971524]
[1763042828384,0.24877696,102440.0,102430.0,0.29171524]
[1763042828589,0.52723697,102440.0,102430.0,0.2506773]
[1763042828800,0.55205697,102440.0,102430.0,0.00377201]
[1763042828931,0.55205697,102440.0,102430.0,0.00477201]
[1763042829679,0.55205697,102440.0,102430.0,0.02521201]
[1763042829896,0.85533698,102440.0,102430.0,0.00577201]
[1763042830313,0.89987697,102440.0,102430.0,0.00577201]
[1763042830533,1.17833698,102440.0,102430.0,0.00577201]
[1763042830777,1.17833698,102440.0,102430.0,0.00377201]
[1763042830998,0.3654,102440.0,102430.0,0.2701173]
[1763042831661,0.0424,102440.0,102430.0,0.2681173]
[1763042832331,0.54091624,102440.0,102430.0,0.00177201]
[1763042832559,0.26245623,102440.0,102430.0,0.1970273]
[1763042832746,0.54091624,102440.0,102430.0,0.1970273]
[1763042832995,0.82653495,102440.0,102430.0,0.1970273]
[1763042833184,0.35885571,102440.0,102430.0,0.1970273]
[1763042833657,0.26245623,102440.0,102430.0,0.1970273]
[1763042833867,0.62975292,102450.0,102440.0,0.19523623]
[1763042834072,0.33697,102450.0,102440.0,0.26632623]
[1763042834285,0.37937,102450.0,102440.0,0.26731176]
[1763042834478,0.60751211,102450.0,102440.0,0.19622176]
[1763042834722,0.60751211,102450.0,102440.0,0.00098553]
[1763042834928,0.63233211,102450.0,102440.0,0.00098553]
[1763042835128,0.41429494,102450.0,102440.0,0.22504176]
[1763042835282,0.60951211,102450.0,102440.0,0.02980553]
[1763042835486,0.41429494,102450.0,102440.0,0.22504176]
[1763042835747,0.002,102450.0,102440.0,0.734991]
[1763042835953,0.002,102450.0,102440.0,0.26731176]
[1763042836089,0.002,102450.0,102440.0,0.30971176]
[1763042836289,0.001,102450.0,102440.0,0.30971176]
[1763042837381,0.19519812,102460.0,102450.0,0.19521717]
[1763042837580,0.19519812,102460.0,102450.0,0.28774717]
[1763042837786,0.66790424,102470.0,102450.0,0.28848624]
[1763042837987,1.13558348,102470.0,102460.0,0.19519812]
[1763042838190,1.12582404,102470.0,102460.0,0.19519812]
[1763042838397,1.12582404,102470.0,102450.0,0.25892717]
[1763042838602,0.19619812,102460.0,102450.0,0.25892717]
[1763042838805,0.19719812,102460.0,102450.0,0.25892717]
[1763042839015,0.001,102460.0,102450.0,0.28774717]
[1763042839222,0.6581448,102470.0,102460.0,0.19519812]
[1763042839446,0.56257907,102470.0,102460.0,0.22401812]
[1763042839654,0.56257907,102470.0,102460.0,0.26628812]
[1763042839655,0.3694,102470.0,102460.0,0.26628812]
[1763042840267,0.327,102470.0,102460.0,0.26628812]
[1763042840471,0.52017907,102470.0,102460.0,0.26628812]
[1763042840676,0.325,102470.0,102460.0,0.26628812]
[1763042840878,0.323,102470.0,102460.0,0.26628812]
[1763042841309,0.324,102470.0,102460.0,0.26628812]
[1763042841520,0.002,102470.0,102460.0,0.26628812]
[1763042842354,0.002,102470.0,102460.0,0.30868812]
[1763042842756,0.19717907,102470.0,102460.0,0.30868812]
[1763042842963,0.19717907,102470.0,102460.0,0.11349]
[1763042843174,0.19717907,102470.0,102460.0,0.26628812]
[1763042843386,0.68967831,102470.0,102460.0,0.00049266]
[1763042843587,0.71349831,102470.0,102460.0,0.00049266]
[1763042843790,0.71249831,102470.0,102460.0,0.00049266]
[1763042844076,0.68767831,102470.0,102460.0,0.00049266]
[1763042846617,0.49249924,102470.0,102460.0,0.19569078]
[1763042846836,0.19517907,102470.0,102460.0,0.22451078]
[1763042847450,1.29555998,102480.0,102460.0,0.26678078]
[1763042847660,0.19517907,102470.0,102460.0,0.26628812]
[1763042847863,1.29555998,102480.0,102460.0,0.26628812]
[1763042848076,1.27073998,102480.0,102460.0,0.26628812]
[1763042848514,1.27073998,102480.0,102470.0,0.19517907]
[1763042848720,1.27173998,102480.0,102470.0,0.19517907]
[1763042848931,1.27173998,102480.0,102460.0,0.23746812]
[1763042848932,0.19517907,102470.0,102460.0,0.23746812]
[1763042849276,1.27173998,102480.0,102460.0,0.26628812]
[1763042849491,1.27173998,102480.0,102470.0,0.19517907]
[1763042849697,1.27073998,102480.0,102470.0,0.00013995]
[1763042849907,1.29538998,102480.0,102470.0,0.00013995]
[1763042850121,1.29638998,102480.0,102470.0,0.19531902]
[1763042850537,1.29738998,102480.0,102470.0,0.00013995]
[1763042850740,1.29638998,102480.0,102470.0,0.00013995]